bitfinex/quotes_BTCUSD_20250525
["timestamp","ask_amount","ask_price","bid_price","bid_amount"]
[1748173411205,0.16222901,106940.0,106930.0,0.73020723]
[1748173411406,0.11622901,106940.0,106930.0,0.73020723]
[1748173412003,0.12741784,106940.0,106930.0,0.73020723]
[1748173412484,0.12741784,106940.0,106930.0,0.74761842]
[1748173413059,0.11867249,106940.0,106930.0,0.74761842]
[1748173415562,0.11867249,106940.0,106930.0,0.44113842]
[1748173415774,0.12740722,106940.0,106930.0,0.32573842]
[1748173415996,0.14310722,106940.0,106930.0,0.32573842]
[1748173416360,0.14310722,106940.0,106930.0,0.30832723]
[1748173416560,0.14683683,106940.0,106930.0,0.30832723]
[1748173416744,0.1381021,106940.0,106930.0,0.30832723]
[1748173419260,0.1381021,106940.0,106930.0,0.15900723]
[1748173419453,0.1381021,106940.0,106930.0,0.30832723]
[1748173420396,0.16964938,106940.0,106930.0,0.30832723]
[1748173421522,0.18554938,106940.0,106930.0,0.00192723]
[1748173421799,0.18554938,106940.0,106930.0,0.30832723]
[1748173424358,0.19957348,106940.0,106930.0,0.30832723]
[1748173426087,0.16797348,106940.0,106930.0,0.30832723]
[1748173426291,0.16797348,106940.0,106930.0,0.34012723]
[1748173428058,0.19907348,106940.0,106930.0,0.00192723]
[1748173428269,0.90962433,106940.0,106930.0,0.00192723]
[1748173428493,0.94894658,106940.0,106930.0,0.00192723]
[1748173429130,0.94394658,106940.0,106930.0,0.001]
[1748173429483,0.0401,106920.0,106900.0,0.33592]
[1748173429686,0.08954556,106910.0,106900.0,0.33592]
[1748173430303,0.08854556,106910.0,106900.0,0.33592]
[1748173430879,0.09254556,106910.0,106900.0,0.64332]
[1748173431120,0.11637376,106910.0,106900.0,0.64332]
[1748173431552,0.11637376,106910.0,106900.0,0.33692]
[1748173431768,0.11637376,106910.0,106900.0,0.64332]
[1748173431999,0.11837376,106910.0,106900.0,0.64332]
[1748173433061,0.11837376,106910.0,106900.0,0.72502]
[1748173433730,0.10348366,106910.0,106900.0,0.72502]
[1748173434627,0.10348366,106910.0,106900.0,0.41862]
[1748173434880,0.13503094,106910.0,106900.0,0.74339272]
[1748173435495,0.13503094,106910.0,106900.0,0.38558858]
[1748173436726,0.10348366,106910.0,106900.0,0.72558858]
[1748173438647,0.10348366,106910.0,106900.0,0.74168858]
[1748173443790,0.10348366,106910.0,106900.0,0.69168858]
[1748173443966,0.10348366,106910.0,106900.0,0.74168858]
[1748173445536,0.10348366,106910.0,106900.0,0.69168858]
[1748173445742,0.10348366,106910.0,106900.0,0.74168858]
[1748173447803,0.0149381,106910.0,106900.0,0.74168858]
[1748173462473,0.0149381,106910.0,106900.0,1.73064643]
[1748173462743,0.0149381,106910.0,106900.0,1.83394084]
[1748173462958,0.0149381,106910.0,106900.0,2.24984084]
[1748173463397,0.0129381,106910.0,106900.0,2.24984084]
[1748173463840,0.0149381,106910.0,106900.0,2.25084084]
[1748173464081,0.006,106910.0,106900.0,2.25084084]
[1748173464300,9.423e-05,106940.0,106930.0,0.0821]
[1748173464527,0.08963979,106940.0,106930.0,0.72842]
[1748173464747,0.08963979,106940.0,106930.0,0.74579272]
[1748173465163,0.09857724,106940.0,106930.0,0.74579272]
[1748173465750,0.10357724,106940.0,106930.0,0.74679272]
[1748173466530,0.10357724,106940.0,106930.0,0.75630334]
[1748173466952,0.10857724,106940.0,106930.0,0.75730334]
[1748173467499,0.14007724,106940.0,106930.0,0.17633272]
[1748173467722,0.14007724,106940.0,106930.0,0.32565272]
[1748173468168,0.14007724,106940.0,106930.0,0.30828]
[1748173469434,0.15123282,106940.0,106930.0,0.30828]
[1748173470647,0.15123282,106940.0,106930.0,0.002]
[1748173470856,0.15123282,106940.0,106930.0,0.30828]
[1748173471055,0.15123282,106940.0,106930.0,0.15896]
[1748173471056,0.16512803,106940.0,106930.0,0.15896]
[1748173471265,0.16512803,106940.0,106930.0,0.30828]
[1748173471624,0.16886255,106940.0,106930.0,0.30828]
[1748173473463,0.20038385,106940.0,106930.0,0.30828]
[1748173474741,0.19968385,106940.0,106930.0,0.15696]
[1748173476071,0.19968385,106940.0,106930.0,0.30628]
[1748173478025,0.19968385,106940.0,106930.0,0.15696]
[1748173488715,0.19968385,106940.0,106930.0,0.30628]
[1748173493972,0.18479375,106940.0,106930.0,0.30628]
[1748173495815,0.18479375,106940.0,106930.0,0.15688]
[1748173497234,0.18479375,106940.0,106930.0,0.3062]
[1748173498614,0.16899375,106940.0,106930.0,0.3062]
[1748173499359,0.16899375,106940.0,106930.0,0.15688]
[1748173500295,0.14009854,106940.0,106930.0,0.17268]
[1748173500547,0.14009854,106940.0,106930.0,0.322]
[1748173508579,0.14009854,106940.0,106930.0,0.3062]
[1748173510765,0.14009854,106940.0,106930.0,0.15688]
[1748173510980,0.14009854,106940.0,106930.0,0.3062]
[1748173512065,0.15569854,106940.0,106930.0,0.3062]
[1748173512727,0.17109854,106940.0,106930.0,0.15688]
[1748173512935,0.19734196,106940.0,106930.0,0.3062]
[1748173514104,0.21151589,106940.0,106930.0,0.3062]
[1748173514304,0.21151589,106940.0,106930.0,0.15676]
[1748173515845,0.16634196,106940.0,106930.0,0.15676]
[1748173516043,0.14009854,106940.0,106930.0,0.18936]
[1748173516238,0.22512389,106940.0,106930.0,0.18936]
[1748173517007,0.22512389,106940.0,106930.0,0.1674813]
[1748173518837,0.18225357,106940.0,106930.0,0.1674813]
[1748173519983,0.18225357,106940.0,106930.0,0.30608]
[1748173520571,0.21305357,106940.0,106930.0,0.30608]
[1748173520998,0.21305357,106940.0,106910.0,0.0814]
[1748173521223,0.12034556,106930.0,106920.0,0.30608]
[1748173521868,0.12034556,106930.0,106920.0,0.32351355]
[1748173522407,0.14421002,106930.0,106920.0,0.32451355]
[1748173522638,0.14821002,106930.0,106920.0,0.32451355]
[1748173523662,0.14821002,106930.0,106920.0,0.32551355]
[1748173523880,0.13628301,106930.0,106920.0,0.32551355]
[1748173525201,0.16780431,106930.0,106920.0,0.32551355]
[1748173526464,0.13700431,106930.0,106920.0,0.32551355]
[1748173526885,0.15192921,106930.0,106920.0,0.32551355]
[1748173528105,0.13700431,106930.0,106920.0,0.32551355]
[1748173543699,0.13700431,106930.0,106920.0,0.35701355]
[1748173544362,0.13700431,106930.0,106920.0,0.35801355]
[1748173544591,0.06238376,106930.0,106920.0,0.40801355]
[1748173544826,0.06238376,106930.0,106920.0,0.74801355]
[1748173545430,0.04745875,106930.0,106920.0,0.74801355]
[1748173548939,0.01593745,106930.0,106920.0,0.74801355]
[1748173550089,0.007,106930.0,106920.0,0.74801355]
[1748173550654,0.007,106930.0,106920.0,0.7625544]
[1748173558439,0.007,106930.0,106920.0,0.74801355]
[1748173560593,0.007,106930.0,106920.0,0.69801355]
[1748173560854,0.007,106930.0,106920.0,0.74801355]
[1748173561182,0.007,106930.0,106920.0,0.54869355]
[1748173561417,0.007,106930.0,106920.0,0.66547355]
[1748173561643,0.13747027,106930.0,106920.0,0.35943355]
[1748173561855,0.10547027,106930.0,106920.0,0.71543355]
[1748173563431,0.10547027,106930.0,106920.0,0.66543355]
[1748173563975,0.12187027,106930.0,106920.0,0.35943355]
[1748173564203,0.13747027,106930.0,106920.0,0.66543355]
[1748173564777,0.12187027,106930.0,106920.0,0.66543355]
[1748173566249,0.10547027,106930.0,106920.0,0.66543355]
[1748173566436,0.10547027,106930.0,106920.0,0.74703355]
[1748173568032,0.01592471,106930.0,106920.0,0.74703355]
[1748173570809,0.01592471,106930.0,106920.0,0.7615744]
[1748173572232,0.007,106930.0,106920.0,0.7615744]
[1748173577601,0.007,106930.0,106920.0,0.7630944]
[1748173577837,0.007,106930.0,106920.0,0.6824944]
[1748173578729,0.007,106930.0,106920.0,0.7151944]
[1748173579083,0.007,106930.0,106920.0,0.7324944]
[1748173579530,0.01594404,106930.0,106920.0,0.71795355]
[1748173579874,0.01594404,106930.0,106920.0,0.66795355]
[1748173580075,0.01594404,106930.0,106920.0,0.71795355]
[1748173580473,0.04784404,106930.0,106920.0,0.71795355]
[1748173581865,0.01594404,106930.0,106920.0,0.71795355]
[1748173584079,0.04784404,106930.0,106920.0,0.02043355]
[1748173584289,0.1373896,106930.0,106920.0,0.17867355]
[1748173584493,0.1373896,106930.0,106920.0,0.37795355]
[1748173584904,0.14858143,106930.0,106920.0,0.37795355]
[1748173585996,0.14858143,106930.0,106920.0,0.07043355]
[1748173586199,0.14858143,106930.0,106920.0,0.37795355]
[1748173586827,0.14858143,106930.0,106920.0,0.07043355]
[1748173587024,0.14858143,106930.0,106920.0,0.37795355]
[1748173589005,0.14858143,106930.0,106920.0,0.37799355]
[1748173589753,0.14858143,106930.0,106920.0,0.32799355]
[1748173590179,0.14858143,106930.0,106920.0,0.37799355]
[1748173590315,0.14858143,106930.0,106920.0,0.32799355]
[1748173590521,0.14858143,106930.0,106920.0,0.37799355]
[1748173591316,0.14821543,106930.0,106920.0,0.37799355]
[1748173593310,0.02676987,106930.0,106920.0,0.40869355]
[1748173593737,0.01557804,106930.0,106920.0,0.40869355]
[1748173593940,0.01557804,106930.0,106920.0,0.4232344]
[1748173594580,0.01557804,106930.0,106920.0,0.7632344]
[1748173595503,0.006634,106930.0,106920.0,0.7632344]
[1748173604311,0.006634,106930.0,106920.0,0.6824944]
[1748173604702,0.006634,106930.0,106920.0,0.7324944]
[1748173604912,0.006634,106930.0,106920.0,0.6824944]
[1748173606786,0.006634,106930.0,106920.0,0.7317744]
[1748173606987,0.038034,106930.0,106920.0,0.36043355]
[1748173607193,0.038034,106930.0,106920.0,0.71723355]
[1748173608213,0.04696958,106930.0,106920.0,0.71723355]
[1748173609231,0.01556958,106930.0,106920.0,0.7637744]
[1748173609417,0.01556958,106930.0,106920.0,0.78865756]
[1748173609830,0.01556958,106930.0,106920.0,1.67247912]
[1748173610242,0.01556958,106930.0,106920.0,1.56428112]
[1748173610449,0.01556958,106930.0,106920.0,1.48456796]
[1748173610843,0.006634,106930.0,106920.0,1.48456796]
[1748173611085,0.006634,106930.0,106920.0,1.05092696]
[1748173611289,0.006634,106930.0,106920.0,0.85331996]
[1748173611883,0.006634,106930.0,106920.0,1.03599396]
[1748173613130,0.006634,106930.0,106920.0,1.37187396]
[1748173620933,0.006634,106930.0,106920.0,1.78777396]
[1748173622085,0.003634,106930.0,106920.0,1.21529996]
[1748173622319,0.002,106930.0,106920.0,1.57209996]
[1748173622767,0.005,106930.0,106920.0,1.57309996]
[1748173622985,0.003,106930.0,106920.0,1.57209996]
[1748173624038,0.0345,106930.0,106920.0,1.21529996]
[1748173624253,0.0345,106930.0,106920.0,1.52309996]
[1748173624475,0.0365,106930.0,106920.0,1.57309996]
[1748173624692,0.0365,106930.0,106920.0,1.52309996]
[1748173624912,0.0365,106930.0,106920.0,1.57309996]
[1748173625353,0.02,106930.0,106920.0,1.57309996]
[1748173625538,0.02,106930.0,106920.0,1.52309996]
[1748173625907,0.02,106930.0,106920.0,1.57309996]
[1748173626127,0.005,106930.0,106920.0,1.57309996]
[1748173626546,0.005,106930.0,106920.0,1.52309996]
[1748173626746,0.005,106930.0,106920.0,1.10719996]
[1748173626970,0.0365,106930.0,106920.0,0.85039996]
[1748173627148,0.0365,106930.0,106920.0,1.15719996]
[1748173627350,0.0365,106930.0,106920.0,0.9183744]
[1748173627556,0.0365,106930.0,106920.0,1.0676544]
[1748173628411,0.04544547,106930.0,106920.0,1.0676544]
[1748173631221,0.01394547,106930.0,106920.0,1.0676544]
[1748173631380,0.02944547,106930.0,106920.0,1.0676544]
[1748173631790,0.01394547,106930.0,106920.0,1.0676544]
[1748173632023,0.04574547,106930.0,106920.0,1.0672944]
[1748173632393,0.01394547,106930.0,106920.0,1.0672944]
[1748173634770,0.04574547,106930.0,106920.0,1.0672944]
[1748173636056,0.01394547,106930.0,106920.0,1.0672944]
[1748173636597,0.04554547,106930.0,106920.0,0.9180144]
[1748173636801,0.04554547,106930.0,106920.0,1.0672944]
[1748173639678,0.04554547,106930.0,106920.0,0.7608544]
[1748173639900,0.04554547,106930.0,106920.0,1.0672944]
[1748173641235,0.04554547,106930.0,106920.0,0.7108544]
[1748173641441,0.04554547,106930.0,106920.0,1.0672944]
[1748173641655,0.04554547,106930.0,106920.0,0.90347355]
[1748173641849,0.04554547,106930.0,106920.0,1.05275355]
[1748173642591,0.04554547,106930.0,106920.0,0.74631355]
[1748173642773,0.04554547,106930.0,106920.0,1.05275355]
[1748173644298,0.04554547,106930.0,106920.0,0.40631355]
[1748173644474,0.04554547,106930.0,106920.0,0.71275355]
[1748173644686,0.04554547,106930.0,106920.0,0.40631355]
[1748173644930,0.04554547,106930.0,106920.0,0.71275355]
[1748173645803,0.04554547,106930.0,106920.0,0.40631355]
[1748173646038,0.04554547,106930.0,106920.0,0.71275355]
[1748173646417,0.04554547,106930.0,106920.0,0.40631355]
[1748173646626,0.04554547,106930.0,106920.0,0.56347355]
[1748173646768,0.04554547,106930.0,106920.0,0.71275355]
[1748173646984,0.04554547,106930.0,106920.0,0.40631355]
[1748173647392,0.04554547,106930.0,106920.0,0.71275355]
[1748173648548,0.04554547,106930.0,106920.0,0.40631355]
[1748173648765,0.04554547,106930.0,106920.0,0.71275355]
[1748173651170,0.04554547,106930.0,106920.0,0.51347355]
[1748173651380,0.04554547,106930.0,106920.0,0.66275355]
[1748173652607,0.0567373,106930.0,106920.0,0.66275355]
[1748173652786,0.0567373,106930.0,106920.0,0.51347355]
[1748173652923,0.0567373,106930.0,106920.0,0.66275355]
[1748173654419,0.0567373,106930.0,106920.0,0.71275355]
[1748173656298,0.0567373,106930.0,106920.0,0.66275355]
[1748173656503,0.0567373,106930.0,106920.0,0.71275355]
[1748173657646,0.0404373,106930.0,106920.0,0.71275355]
[1748173657949,0.0563373,106930.0,106920.0,0.71275355]
[1748173664401,0.0251373,106930.0,106920.0,0.7583944]
[1748173664823,0.0251373,106930.0,106920.0,0.7272944]
[1748173665402,0.0251373,106930.0,106920.0,0.7583944]
[1748173665551,0.0251373,106930.0,106920.0,0.84793996]
[1748173665763,0.01394547,106930.0,106920.0,0.84793996]
[1748173667851,0.01394547,106930.0,106920.0,1.18793996]
[1748173668108,0.005,106930.0,106920.0,1.03865996]
[1748173668291,0.005,106930.0,106920.0,1.18797996]
[1748173671322,0.005,106930.0,106920.0,1.03765996]
[1748173671532,0.005,106930.0,106920.0,1.0673344]
[1748173671943,0.0363,106930.0,106920.0,1.0170544]
[1748173673243,0.04524297,106930.0,106920.0,1.0170544]
[1748173674565,0.01394297,106930.0,106920.0,1.0170544]
[1748173674862,0.01394297,106930.0,106920.0,1.11682745]
[1748173675007,0.01394297,106930.0,106920.0,1.13242745]
[1748173675214,0.01394297,106930.0,106920.0,1.14822745]
[1748173676611,0.01394297,106930.0,106920.0,1.0984544]
[1748173677000,0.01394297,106930.0,106920.0,1.90642596]
[1748173677338,0.01394297,106930.0,106920.0,1.73444996]
[1748173677747,0.005,106930.0,106920.0,1.73444996]
[1748173677997,0.005,106930.0,106920.0,1.59125296]
[1748173678147,0.005,106930.0,106920.0,1.51996096]
[1748173678516,0.005,106930.0,106920.0,1.50947196]
[1748173678910,0.005,106930.0,106920.0,1.18799996]
[1748173679110,0.005,106930.0,106920.0,1.30573596]
[1748173679671,0.005,106930.0,106920.0,1.72163596]
[1748173683415,0.005,106930.0,106920.0,1.74651912]
[1748173684984,0.005,106930.0,106920.0,1.72163596]
[1748173690633,0.005,106930.0,106920.0,1.57231596]
[1748173690850,0.005,106930.0,106920.0,1.72159596]
[1748173708645,0.005,106930.0,106920.0,1.38403596]
[1748173708868,0.005,106930.0,106920.0,1.69011596]
[1748173709844,0.005,106930.0,106920.0,1.72081596]
[1748173721650,0.005,106930.0,106920.0,1.69011596]
[1748173722273,0.005,106930.0,106920.0,1.70631596]
[1748173723524,0.005,106930.0,106920.0,1.69011596]
[1748173723687,0.0216,106930.0,106920.0,1.69011596]
[1748173724246,0.005,106930.0,106920.0,1.69011596]
[1748173728571,0.005,106930.0,106920.0,1.54083596]
[1748173728775,0.005,106930.0,106920.0,1.69011596]
[1748173742894,0.005,106930.0,106920.0,1.72251596]
[1748173749476,0.005,106930.0,106920.0,1.67251596]
[1748173749784,0.005,106930.0,106920.0,1.72251596]
[1748173755112,0.005,106930.0,106920.0,1.72257908]
[1748173756248,9.423e-05,106940.0,106930.0,0.391]
[1748173756406,9.423e-05,106940.0,106930.0,2.77080941]
[1748173756608,9.423e-05,106940.0,106930.0,2.02545541]
[1748173757013,9.423e-05,106940.0,106930.0,2.04288896]
[1748173757420,0.00409423,106940.0,106930.0,2.04388896]
[1748173757620,0.00809423,106940.0,106930.0,2.04488896]
[1748173758019,0.00809423,106940.0,106930.0,2.46078896]
[1748173759539,0.00809423,106940.0,106930.0,2.45878896]
[1748173759779,9.423e-05,106940.0,106930.0,2.45878896]
[1748173760045,9.423e-05,106940.0,106930.0,2.45978896]
[1748173760242,9.423e-05,106940.0,106930.0,2.06877232]
[1748173760446,9.423e-05,106940.0,106930.0,2.09266203]
[1748173760722,9.423e-05,106940.0,106930.0,2.12066103]
[1748173760938,9.423e-05,106940.0,106930.0,2.12166103]
[1748173761150,0.0329554,106970.0,106960.0,0.06554085]
[1748173761353,0.0329554,106970.0,106960.0,2.61746896]
[1748173761354,0.03300581,106970.0,106960.0,2.61746896]
[1748173761566,0.03300581,106970.0,106960.0,2.63256596]
[1748173761776,0.03300581,106970.0,106960.0,2.97256596]
[1748173762605,5.041e-05,106970.0,106960.0,2.97256596]
[1748173762976,5.041e-05,106970.0,106960.0,2.66656596]
[1748173763285,5.041e-05,106970.0,106960.0,2.97252596]
[1748173763498,0.00305041,106970.0,106960.0,2.97252596]
[1748173763695,0.00605041,106970.0,106960.0,2.97252596]
[1748173765636,0.00605041,106970.0,106960.0,2.98675217]
[1748173766112,0.00605041,106970.0,106960.0,2.29431117]
[1748173768819,0.00305041,106970.0,106960.0,2.29431117]
[1748173768998,5.041e-05,106970.0,106960.0,2.29431117]
[1748173769210,0.00205041,106970.0,106960.0,2.29431117]
[1748173769851,0.00305041,106970.0,106960.0,2.29431117]
[1748173770250,0.00205041,106970.0,106960.0,2.31919453]
[1748173770488,0.00305041,106970.0,106960.0,2.31919453]
[1748173771953,0.00305041,106970.0,106960.0,2.65495453]
[1748173772587,0.00305041,106970.0,106960.0,2.67984424]
[1748173773561,0.00305041,106970.0,106960.0,2.65496088]
[1748173776084,0.00305041,106970.0,106960.0,2.63007117]
[1748173776298,0.00305041,106970.0,106960.0,1.69137617]
[1748173776499,0.00305041,106970.0,106960.0,1.72407617]
[1748173776679,0.00305041,106970.0,106960.0,1.69137617]
[1748173776978,0.00305041,106970.0,106960.0,2.10727617]
[1748173780252,0.00305041,106970.0,106960.0,2.12227617]
[1748173780754,0.00305041,106970.0,106960.0,2.10727617]
[1748173783198,0.00305041,106970.0,106960.0,1.80135617]
[1748173783409,0.00305041,106970.0,106960.0,2.10723617]
[1748173783624,0.00305041,106970.0,106960.0,2.13743617]
[1748173790410,0.00305041,106970.0,106960.0,2.12223617]
[1748173790581,0.00305041,106970.0,106960.0,2.10723617]
[1748173794575,0.00305041,106970.0,106960.0,2.11657399]
[1748173800762,0.00305041,106970.0,106960.0,1.96737399]
[1748173800961,0.03455041,106970.0,106960.0,1.92035199]
[1748173801331,0.03455041,106970.0,106960.0,1.92027199]
[1748173801766,0.01945041,106970.0,106960.0,1.92027199]
[1748173801989,0.07511384,106990.0,106970.0,0.01454085]
[1748173802196,0.05509321,107000.0,106990.0,0.051]
[1748173802405,0.04395178,107000.0,106990.0,0.57828956]
[1748173802612,0.04395178,107000.0,106990.0,0.37423355]
[1748173802820,0.04395178,107000.0,106990.0,0.0829744]
[1748173803022,0.04395178,107000.0,106990.0,0.3887744]
[1748173803221,0.04395178,107000.0,106990.0,0.7287744]
[1748173804296,0.04395178,107000.0,106990.0,0.73528986]
[1748173804779,0.04395178,107000.0,106990.0,0.68528986]
[1748173804992,0.04795178,107000.0,106990.0,0.43048986]
[1748173805209,0.04795178,107000.0,106990.0,0.68628986]
[1748173805709,0.05295178,107000.0,106990.0,0.68728986]
[1748173806483,0.05295178,107000.0,106990.0,0.73728986]
[1748173807410,0.05295178,107000.0,106990.0,0.82683542]
[1748173807411,0.06189061,107000.0,106990.0,0.82683542]
[1748173809946,0.06189061,107000.0,106990.0,1.21287642]
[1748173810128,0.06189061,107000.0,106990.0,1.05968942]
[1748173810347,0.06189061,107000.0,106990.0,0.99908342]
[1748173810573,0.05295178,107000.0,106990.0,0.99908342]
[1748173810782,0.05295178,107000.0,106990.0,0.82683542]
[1748173811922,0.05295178,107000.0,106990.0,0.98923442]
[1748173812694,0.05295178,107000.0,106990.0,1.00240342]
[1748173815169,0.05295178,107000.0,106990.0,1.33808342]
[1748173815733,0.05295178,107000.0,106990.0,1.16251542]
[1748173817138,0.06188939,107000.0,106990.0,1.16251542]
[1748173818977,0.06188939,107000.0,106990.0,1.91518542]
[1748173819184,0.06188939,107000.0,106990.0,1.54303242]
[1748173819928,0.05295178,107000.0,106990.0,1.54303242]
[1748173821428,0.02145178,107000.0,106990.0,1.95893242]
[1748173821850,0.02145178,107000.0,106990.0,1.99013242]
[1748173822268,0.01245178,107000.0,106990.0,1.98813242]
[1748173822510,0.01645178,107000.0,106990.0,1.98913242]
[1748173823492,0.01945178,107000.0,106990.0,1.98913242]
[1748173823882,0.02145178,107000.0,106990.0,1.98913242]
[1748173824481,0.02145178,107000.0,106990.0,1.98813242]
[1748173824636,0.01745178,107000.0,106990.0,1.98813242]
[1748173824842,0.02045178,107000.0,106990.0,1.98813242]
[1748173826524,0.02045178,107000.0,106990.0,1.91995942]
[1748173827113,0.02045178,107000.0,106990.0,1.50405942]
[1748173827511,0.02045178,107000.0,106990.0,1.48785942]
[1748173827698,0.02045178,107000.0,106990.0,1.50345942]
[1748173833024,0.02045178,107000.0,106990.0,1.91935942]
[1748173834442,0.05195178,107000.0,106990.0,1.58295942]
[1748173834645,0.05195178,107000.0,106990.0,1.57633542]
[1748173834866,0.05195178,107000.0,106990.0,1.68192342]
[1748173835056,0.05195178,107000.0,106990.0,1.68504042]
[1748173835661,0.05195178,107000.0,106990.0,1.57633542]
[1748173835809,0.05195178,107000.0,106990.0,1.68279042]
[1748173836010,0.05195178,107000.0,106990.0,1.57633542]
[1748173836211,0.05195178,107000.0,106990.0,1.71071842]
[1748173838108,0.05195178,107000.0,106990.0,1.40499842]
[1748173838329,0.05195178,107000.0,106990.0,1.71071842]
[1748173838890,0.05195178,107000.0,106990.0,1.29481842]
[1748173840486,0.05195178,107000.0,106990.0,1.26240242]
[1748173840905,0.05195178,107000.0,106990.0,0.95668242]
[1748173841143,0.03605178,107000.0,106990.0,0.95668242]
[1748173841360,0.02045178,107000.0,106990.0,1.29380242]
[1748173843230,0.02045178,107000.0,106990.0,1.31868578]
[1748173845282,0.02045178,107000.0,106990.0,1.29380242]
[1748173846052,0.02045178,107000.0,106990.0,1.29376242]
[1748173847892,0.00945178,107000.0,106990.0,1.29376242]
[1748173848313,0.0159654,107010.0,106990.0,1.29376242]
[1748173848526,0.0323654,107010.0,107000.0,0.53696033]
[1748173848756,0.0323654,107010.0,107000.0,0.54114002]
[1748173849058,0.0323654,107010.0,107000.0,0.59114002]
[1748173849207,0.0323654,107010.0,107000.0,0.60857357]
[1748173849390,0.0323654,107010.0,107000.0,0.75773357]
[1748173849869,0.0343654,107010.0,107000.0,0.75773357]
[1748173850076,0.0179654,107010.0,107000.0,0.75773357]
[1748173850486,0.0209654,107010.0,107000.0,0.75773357]
[1748173855817,0.0209654,107010.0,107000.0,0.91421357]
[1748173856340,0.0209654,107010.0,107000.0,0.93909693]
[1748173856577,0.0209654,107010.0,107000.0,1.37053778]
[1748173856764,0.0209654,107010.0,107000.0,1.42632749]
[1748173859742,0.0209654,107010.0,107000.0,1.41092749]
[1748173860273,0.0516654,107010.0,107000.0,0.59493542]
[1748173860522,0.0516654,107010.0,107000.0,0.48467542]
[1748173861414,0.0516654,107010.0,107000.0,0.33551542]
[1748173861618,0.0516654,107010.0,107000.0,0.48467542]
[1748173862453,0.0516654,107010.0,107000.0,0.17903542]
[1748173862694,0.0516654,107010.0,107000.0,0.38058901]
[1748173863109,0.0516654,107010.0,107000.0,0.02494901]
[1748173863316,0.0516654,107010.0,107000.0,0.33058901]
[1748173864049,0.0516654,107010.0,107000.0,0.02494901]
[1748173864253,0.0516654,107010.0,107000.0,0.33058901]
[1748173864744,0.06060267,107010.0,107000.0,0.33058901]
[1748173864948,0.06060267,107010.0,107000.0,0.02494901]
[1748173865162,0.06060267,107010.0,106990.0,0.33568]
[1748173865163,0.15114823,107010.0,106990.0,0.33568]
[1748173865340,0.15114823,107010.0,106970.0,0.05]
[1748173865341,0.0301,106990.0,106980.0,0.30564]
[1748173865602,0.11964556,106990.0,106980.0,0.30564]
[1748173866212,0.13977466,106990.0,106980.0,0.30564]
[1748173866447,0.13877466,106990.0,106980.0,0.30564]
[1748173867522,0.13877466,106990.0,106980.0,0.15648]
[1748173867730,0.12758283,106990.0,106980.0,0.30564]
[1748173867947,0.12958283,106990.0,106980.0,0.30564]
[1748173868121,0.0161,106980.0,106970.0,0.0010504]
[1748173868287,0.0161,106980.0,106970.0,0.3067704]
[1748173868694,0.0161,106980.0,106970.0,0.3567704]
[1748173869293,0.0335,106980.0,106970.0,0.3567704]
[1748173870141,0.0335,106980.0,106970.0,0.0510504]
[1748173870361,0.0335,106980.0,106970.0,0.6967704]
[1748173870575,0.0335,106980.0,106970.0,0.71131125]
[1748173870990,0.0365,106980.0,106970.0,0.71131125]
[1748173872613,0.0204,106980.0,106970.0,0.71131125]
[1748173873705,0.004,106980.0,106970.0,1.49506725]
[1748173873907,0.004,106980.0,106970.0,1.66617381]
[1748173874112,0.004,106980.0,106970.0,1.09294781]
[1748173874319,0.004,106980.0,106970.0,1.05347281]
[1748173874842,0.004,106980.0,106970.0,0.71131125]
[1748173874993,0.001,106980.0,106970.0,0.71131125]
[1748173875202,0.0165,106990.0,106980.0,0.06454085]
[1748173875578,0.0165,106990.0,106980.0,0.06687748]
[1748173876606,0.0175,106990.0,106980.0,0.06687748]
[1748173876925,0.0175,106990.0,106980.0,0.06454085]
[1748173877808,0.0195,106990.0,106980.0,0.06454085]
[1748173878316,0.0195,106990.0,106980.0,0.06687749]
[1748173880324,0.0195,106990.0,106980.0,0.40259749]
[1748173880538,0.0195,106990.0,106980.0,0.40026085]
[1748173881700,0.0195,106990.0,106980.0,0.40126085]
[1748173882120,0.003,106990.0,106980.0,0.40126085]
[1748173882325,0.003,106990.0,106980.0,0.41756085]
[1748173883049,0.001,106990.0,106980.0,0.41756085]
[1748173883453,0.0158,107000.0,106990.0,0.06454085]
[1748173883606,0.0158,107000.0,106990.0,0.37026085]
[1748173885262,0.0168,107000.0,106990.0,0.37026085]
[1748173885799,0.0168,107000.0,106990.0,0.37126085]
[1748173885952,0.0188,107000.0,106990.0,0.37126085]
[1748173889714,0.0188,107000.0,106990.0,0.38726085]
[1748173890608,0.02772269,107000.0,106990.0,0.37126085]
[1748173894046,0.02772269,107000.0,106990.0,0.32126085]
[1748173894274,0.02772269,107000.0,106990.0,0.37126085]
[1748173900584,0.02772269,107000.0,106990.0,0.38696085]
[1748173901407,0.02772269,107000.0,106990.0,0.37126085]
[1748173901636,0.02772269,107000.0,106990.0,0.38696085]
[1748173902082,0.01192269,107000.0,106990.0,0.38696085]
[1748173904779,0.01192269,107000.0,106990.0,0.72696085]
[1748173904988,0.01192269,107000.0,106990.0,0.74276085]
[1748173906786,0.01192269,107000.0,106990.0,0.72696085]
[1748173911800,0.01192269,107000.0,106990.0,0.83230641]
[1748173914527,0.01192269,107000.0,106990.0,1.16798641]
[1748173918841,0.01192269,107000.0,106990.0,2.53894141]
[1748173919054,0.01192269,107000.0,106990.0,2.08669041]
[1748173919494,0.003,107000.0,106990.0,2.08669041]
[1748173920126,0.003,107000.0,106990.0,1.16798641]
[1748173922486,0.003,107000.0,106990.0,0.86226641]
[1748173922702,0.003,107000.0,106990.0,1.16786641]
[1748173924775,0.003,107000.0,106990.0,1.21748457]
[1748173924982,0.003,107000.0,106990.0,3.94156457]
[1748173925380,0.003,107000.0,106990.0,3.89194641]
[1748173925613,0.0159654,107010.0,107000.0,0.051]
[1748173925807,0.0159654,107010.0,107000.0,0.18648641]
[1748173926241,0.0159654,107010.0,107000.0,0.17048641]
[1748173926654,0.0159654,107010.0,107000.0,0.47608641]
[1748173926884,0.0159654,107010.0,107000.0,0.49208641]
[1748173927089,0.0169654,107010.0,107000.0,1.42404641]
[1748173927518,0.0169654,107010.0,107000.0,1.37394141]
[1748173927722,0.0169654,107010.0,107000.0,1.34322941]
[1748173928236,0.0169654,107010.0,107000.0,1.18066141]
[1748173930214,0.0169654,107010.0,107000.0,0.90898641]
[1748173930751,0.0169654,107010.0,107000.0,0.89298641]
[1748173931270,0.0169654,107010.0,107000.0,1.00491841]
[1748173932268,0.0169654,107010.0,107000.0,1.20430941]
[1748173935484,0.0169654,107010.0,107000.0,1.21980941]
[1748173941009,0.0169654,107010.0,107000.0,0.89870941]
[1748173941159,0.0479654,107010.0,107000.0,0.72338]
[1748173941349,0.0479654,107010.0,107000.0,0.57422]
[1748173941557,0.0479654,107010.0,107000.0,0.77338]
[1748173941760,0.0479654,107010.0,107000.0,0.73792085]